bitfinex-derivatives/quotes_SOLF0:USTF0_20240918
["timestamp","ask_amount","ask_price","bid_price","bid_amount"]
[1726668811102,3.8836,128.74,128.71,14.94]
[1726668811302,3.8836,128.74,128.71,18.8243]
[1726668811997,3.884,128.73,128.7,3.8846]
[1726668812193,14.94,128.77,128.69,14.94]
[1726668812399,18.86318095,128.77,128.69,14.94]
[1726668813198,3.8842,128.72,128.69,18.8248]
[1726668813399,3.8842,128.72,128.69,3.8848]
[1726668816106,14.94,128.75,128.66,14.94]
[1726668816405,14.94,128.73,128.66,14.94]
[1726668816604,14.94,128.73,128.66,18.8257]
[1726668817608,14.94,128.73,128.66,14.94]
[1726668818305,3.8851,128.69,128.66,18.8258]
[1726668819010,3.8851,128.69,128.67,3.8857]
[1726668820509,3.8851,128.69,128.66,18.8259]
[1726668822202,3.90621354,128.7,128.66,14.94]
[1726668822402,3.8849,128.7,128.67,3.8855]
[1726668822602,7.75750017,128.7,128.67,3.8855]
[1726668822803,3.8851,128.69,128.67,3.8855]
[1726668824312,3.8851,128.69,128.66,18.8258]
[1726668824509,3.8854,128.68,128.66,3.8858]
[1726668824913,3.8854,128.68,128.65,3.8861]
[1726668825212,14.94,128.72,128.6,3.83801447]
[1726668825213,3.96950501,128.69,128.6,3.83801447]
[1726668825413,14.94,128.69,128.62,3.887]
[1726668825611,14.94,128.69,128.6,14.94]
[1726668825612,3.8869,128.64,128.6,14.94]
[1726668825812,14.94,128.67,128.59,17.9679]
[1726668826108,3.8862,128.66,128.59,17.9679]
[1726668826409,3.8862,128.66,128.61,14.94]
[1726668826609,3.8863,128.65,128.61,14.94]
[1726668826814,7.84879175,128.65,128.62,3.887]
[1726668827013,3.8863,128.65,128.62,3.887]
[1726668827213,3.8861,128.66,128.62,3.887]
[1726668827410,3.8861,128.66,128.63,3.8867]
[1726668828117,3.8857,128.67,128.64,13.4464]
[1726668828710,3.8857,128.67,128.64,9.56]
[1726668829020,3.8861,128.66,128.63,13.4468]
[1726668833416,9.56,128.65,128.61,9.56]
[1726668833830,9.56,128.66,128.62,9.56]
[1726668834325,3.8862,128.66,128.63,13.4467]
[1726668835228,9.56,128.66,128.62,9.56]
[1726668835433,9.56,128.64,128.6,9.56]
[1726668835726,3.887,128.63,128.6,13.4476]
[1726668837932,13.4466,128.64,128.61,3.8873]
[1726668838121,3.8866,128.64,128.61,3.8873]
[1726668839631,9.56,128.64,128.6,9.56]
[1726668840133,3.8873,128.62,128.6,9.56]
[1726668840520,9.56,128.64,128.6,9.56]
[1726668840724,3.8872,128.63,128.6,9.56]
[1726668841425,3.8872,128.62,128.6,9.56]
[1726668841629,13.42826953,128.62,128.56,8.8499]
[1726668841822,3.8877,128.61,128.57,9.56]
[1726668842028,3.8877,128.61,128.58,9.56]
[1726668842424,3.8877,128.61,128.58,13.4481]
[1726668842627,3.8879,128.6,128.58,9.56]
[1726668842932,3.86826953,128.62,128.59,13.448]
[1726668843231,3.8873,128.62,128.59,13.448]
[1726668843532,7.86900295,128.62,128.59,13.448]
[1726668843724,3.8873,128.62,128.59,13.448]
[1726668843928,337.0,128.66,128.61,9.56]
[1726668843929,3.8871,128.63,128.61,9.56]
[1726668844433,3.8874,128.62,128.59,13.4479]
[1726668844626,9.56,128.64,128.59,13.4479]
[1726668844827,9.56,128.62,128.58,9.56]
[1726668845029,3.8875,128.61,128.58,13.4483]
[1726668845230,13.50240727,128.62,128.57,9.56]
[1726668845426,9.56,128.59,128.46,7.784]
[1726668845629,9.56,128.59,128.54,9.56]
[1726668845830,3.96667731,128.58,128.54,9.56]
[1726668846033,3.8888,128.57,128.54,13.4495]
[1726668846638,7.79174472,128.58,128.54,13.4495]
[1726668846838,7.79174472,128.58,128.55,3.8893]
[1726668847137,9.56,128.59,128.55,13.4493]
[1726668847434,17.30377841,128.59,128.55,13.4493]
[1726668849037,3.8885,128.58,128.55,13.4493]
[1726668849337,13.41537841,128.59,128.54,13.4495]
[1726668849529,9.56,128.58,128.54,9.56]
[1726668849734,9.56,128.57,128.52,3.0294]
[1726668850233,9.56,128.57,128.53,9.56]
[1726668850439,9.56,128.57,128.52,3.0294]
[1726668850440,9.56,128.58,128.54,9.56]
[1726668850829,3.8889,128.57,128.54,9.56]
[1726668852045,3.8889,128.57,128.53,13.4497]
[1726668852235,9.56,128.57,128.53,9.56]
[1726668852540,9.56,128.55,128.52,3.8902]
[1726668852730,13.4495,128.55,128.52,3.8902]
[1726668854644,13.449,128.56,128.53,3.8898]
[1726668855032,9.56,128.56,128.51,12.4619]
[1726668855241,3.8895,128.55,128.52,3.8901]
[1726668855537,9.56,128.54,128.49,5.8165]
[1726668855735,9.56,128.54,128.49,15.3765]
[1726668856239,3.87184883,128.54,128.5,9.56]
[1726668856441,13.4495,128.55,128.51,3.8904]
[1726668857743,3.8895,128.55,128.52,3.8902]
[1726668859134,3.8895,128.55,128.39,156.73313496]
[1726668859340,3.8895,128.55,128.51,9.56]
[1726668859542,3.89,128.53,128.51,9.56]
[1726668859937,13.41687949,128.55,128.51,9.56]
[1726668860142,3.8897,128.54,128.51,9.56]
[1726668860340,3.8897,128.54,128.51,13.4505]
[1726668860639,3.8897,128.54,128.51,9.56]
[1726668861349,17.30637949,128.55,128.51,9.56]
[1726668861541,7.74637949,128.55,128.52,9.56]
[1726668861847,7.74617949,128.55,128.52,13.4501]
[1726668862444,3.8891,128.56,128.53,13.4498]
[1726668862846,7.6911763,128.57,128.54,3.8896]
[1726668863046,7.6911763,128.57,128.54,13.4496]
[1726668863549,3.889,128.56,128.54,9.56]
[1726668864545,3.889,128.56,128.54,13.4496]
[1726668865447,3.8888,128.57,128.54,13.4496]
[1726668865845,12.6008,128.59,128.55,3.8893]
[1726668866242,12.6008,128.59,128.54,9.56]
[1726668866443,3.83408595,128.58,128.55,3.8891]
[1726668866651,7.72258595,128.58,128.54,9.56]
[1726668866841,3.0408,128.59,128.52,13.45]
[1726668867042,9.56,128.56,128.52,13.45]
[1726668867243,9.56,128.55,128.5,18.3957]
[1726668868751,9.56,128.56,128.51,9.56]
[1726668869354,3.8892,128.56,128.53,13.4499]
[1726668869548,9.56,128.57,128.53,9.56]
[1726668870052,13.4488,128.57,128.54,3.8895]
[1726668870255,9.56,128.57,128.53,9.56]
[1726668870947,9.56,128.58,128.54,9.56]
[1726668871743,3.8889,128.57,128.54,13.4494]
[1726668873748,13.4485,128.58,128.55,3.8891]
[1726668873950,9.56,128.57,128.53,9.56]
[1726668874344,226.0,128.65,128.5,8.8357]
[1726668874545,9.56,128.65,128.5,8.8357]
[1726668874746,3.89386039,128.64,128.6,9.56]
[1726668874954,3.89386039,128.64,128.6,13.4476]
[1726668875556,7.78046039,128.64,128.61,3.8873]
[1726668875941,3.89386039,128.64,128.61,3.8873]
[1726668876341,6.0192,128.67,128.62,3.887]
[1726668876555,9.56,128.66,128.61,9.56]
[1726668876753,9.56,128.65,128.61,9.56]
[1726668876953,3.8868,128.64,128.61,9.56]
[1726668877653,3.8868,128.64,128.6,13.4476]
[1726668877854,9.56,128.61,128.56,9.56]
[1726668878055,3.82382693,128.6,128.56,9.56]
[1726668878446,9.56,128.61,128.56,9.56]
[1726668878447,13.4476,128.61,128.57,3.8884]
[1726668878647,3.82577231,128.6,128.57,3.8884]
[1726668879053,3.82577231,128.6,128.57,13.4484]
[1726668879246,13.4476,128.61,128.57,13.4484]
[1726668879946,3.8876,128.61,128.57,3.8884]
[1726668881250,3.85049824,128.6,128.57,3.8884]
[1726668881856,7.73829824,128.6,128.57,3.8884]
[1726668882956,3.85049824,128.6,128.58,3.8883]
[1726668883252,3.8876,128.61,128.58,3.8883]
[1726668883650,3.91469915,128.6,128.58,3.8883]
[1726668883959,14.95,128.64,128.58,3.8883]
[1726668884458,1.1351013,128.63,128.58,3.8883]
[1726668884755,3.8875,128.61,128.58,3.8883]
[1726668884948,3.98403735,128.6,128.58,3.8883]
[1726668885662,3.8873,128.62,128.59,3.8881]
[1726668885862,1.13510147,128.61,128.59,3.8881]
[1726668886368,3.8873,128.62,128.59,3.8881]
[1726668887360,3.8873,128.62,128.6,3.8878]
[1726668892369,3.8873,128.62,128.53,14.95]
[1726668892370,2.7891,128.65,128.58,14.95]
[1726668892668,1.13547617,128.64,128.58,14.95]
[1726668893169,5.02227617,128.64,128.61,3.8872]
[1726668893365,1.13547699,128.63,128.61,3.8872]
[1726668896363,1.13547699,128.63,128.62,3.8872]
[1726668896763,1.13547699,128.64,128.62,3.8872]
[1726668896963,6.6755,128.65,128.62,3.8872]
[1726668897263,1.13543654,128.64,128.63,3.8869]
[1726668897566,6.0192,128.67,128.62,14.95]
[1726668897770,3.0635,128.67,128.64,14.95]
[1726668897973,7.70583226,128.68,128.63,14.95]
[1726668898172,3.82033226,128.68,128.63,14.95]
[1726668898474,40.8926085,128.7,128.64,3.8864]
[1726668898767,3.8856,128.68,128.64,3.8864]
[1726668899275,3.8857,128.67,128.64,3.8864]
[1726668899572,32.19532032,128.69,128.63,3.8867]
[1726668899771,32.19532032,128.69,128.61,14.95]
[1726668900273,9.56,128.66,128.62,13.447]
[1726668900479,9.56,128.64,128.58,8.7389]
[1726668900766,3.81709973,128.63,128.6,13.4475]
[1726668900969,3.8872,128.62,128.59,9.56]
[1726668901169,7.86495011,128.62,128.59,13.4479]
[1726668901371,7.86495011,128.62,128.59,9.56]
[1726668901872,7.86495011,128.62,128.59,13.4479]
[1726668902167,3.97775011,128.62,128.53,8.7262]
[1726668902368,3.8877,128.61,128.58,9.56]
[1726668902573,3.83654893,128.6,128.57,9.56]
[1726668902970,3.8876,128.61,128.58,3.8882]
[1726668905574,7.77198294,128.62,128.59,3.888]
[1726668905776,3.8872,128.62,128.59,3.888]
[1726668906173,3.8237421,128.61,128.59,3.888]
[1726668906382,3.8237421,128.61,128.58,3.8883]
[1726668906876,7.7112421,128.61,128.58,3.8883]
[1726668907068,14.94,128.64,128.56,14.94]
[1726668907264,1.13391332,128.63,128.56,14.94]
[1726668907576,3.8875,128.61,128.56,14.94]
[1726668907874,3.8881,128.59,128.53,8.7262]
[1726668908067,14.94,128.62,128.54,14.94]
[1726668908274,1.13367407,128.61,128.54,14.94]
[1726668908473,3.8881,128.59,128.55,3.8892]
[1726668908775,18.82832684,128.62,128.55,3.8892]
[1726668908969,18.35435691,128.61,128.57,3.8885]
[1726668909170,3.88832684,128.62,128.56,14.94]
[1726668909477,17.22400753,128.63,128.56,14.94]
[1726668909675,17.22400753,128.63,128.58,3.8882]
[1726668909676,5.02078966,128.62,128.58,3.8882]
[1726668909970,337.0,128.64,128.57,14.94]
[1726668910170,5.02037641,128.63,128.6,3.8877]
[1726668910372,3.8869,128.63,128.57,14.94]
[1726668910770,7.82160881,128.63,128.59,3.8878]
[1726668910977,7.82160881,128.63,128.57,14.94]
[1726668911380,7.82160881,128.63,128.59,3.888]
[1726668911578,5.02111645,128.62,128.59,3.888]
[1726668911779,3.8872,128.62,128.59,3.888]
[1726668912076,3.8875,128.61,128.58,3.8882]
[1726668912284,3.93470881,128.63,128.57,14.94]
[1726668912578,1.13404193,128.62,128.56,18.8289]
[1726668912780,18.82841354,128.62,128.54,14.94]
[1726668913081,3.8882,128.59,128.56,3.8888]
[1726668913271,7.83036042,128.59,128.56,3.8888]
[1726668914181,7.83036042,128.59,128.54,14.94]
[1726668914182,3.8886,128.58,128.54,14.94]
[1726668915184,3.8886,128.58,128.55,3.8891]
[1726668915384,3.94216042,128.59,128.56,14.94]
[1726668915986,3.94216042,128.59,128.57,3.8885]
[1726668916178,3.94216042,128.59,128.56,14.94]
[1726668916384,5.7139,128.6,128.54,14.94]
[1726668916586,3.8882,128.59,128.56,3.8889]
[1726668916885,337.0,128.61,128.56,14.94]
[1726668917885,3.92659414,128.62,128.57,14.94]
[1726668918084,3.8879,128.6,128.57,18.8285]
[1726668919985,3.8876,128.61,128.58,3.8882]
[1726668920180,17.24631768,128.63,128.57,14.94]
[1726668920382,5.03495535,128.62,128.59,14.94]
[1726668920592,5.0226301,128.62,128.59,18.8279]
[1726668920783,1.1354301,128.62,128.59,14.94]
[1726668921290,5.0228301,128.62,128.59,18.8279]
[1726668921490,3.8874,128.62,128.59,18.8279]
[1726668921688,3.8874,128.62,128.59,3.8879]
[1726668922185,3.8875,128.61,128.59,3.8879]
[1726668923089,3.8873,128.62,128.59,3.8879]
[1726668924191,3.8876,128.61,128.58,3.8882]
[1726668924788,3.8879,128.6,128.57,18.8285]
[1726668924992,21.20825015,128.63,128.57,3.8885]
[1726668925189,16.07602307,128.62,128.55,14.94]
[1726668925392,3.8882,128.59,128.55,14.94]
[1726668925993,3.8879,128.6,128.55,14.94]
[1726668926692,3.8883,128.59,128.55,14.94]
[1726668927093,3.8883,128.59,128.56,3.8888]
[1726668927293,3.91361638,128.62,128.55,14.94]
[1726668927601,38.03216548,128.64,128.59,3.8879]
[1726668927802,1.13606917,128.63,128.59,3.8879]
[1726668927996,7.72359476,128.62,128.59,3.8879]
[1726668928301,3.96910024,128.61,128.59,3.8879]
[1726668929300,38.03102126,128.64,128.58,3.8882]
[1726668929497,22.28217616,128.63,128.57,14.94]
[1726668929693,5.9263,128.64,128.61,3.8873]
[1726668929894,23.19182275,128.64,128.59,14.94]
[1726668930296,23.19182275,128.64,128.6,3.8876]
[1726668930297,7.78378715,128.63,128.6,3.8876]
[1726668930898,7.78378715,128.63,128.59,14.94]
[1726668930899,23.19182275,128.64,128.59,14.94]
[1726668931096,1.13609,128.63,128.59,14.94]
[1726668931292,3.8873,128.62,128.59,3.8879]
[1726668931494,38.20762275,128.64,128.57,14.94]
[1726668931690,1.1359987,128.63,128.55,14.94]
[1726668931891,3.888,128.6,128.57,3.8885]
[1726668932402,3.80077821,128.63,128.55,14.94]
[1726668932605,3.8877,128.61,128.55,14.94]
[1726668932799,3.83813754,128.63,128.57,14.94]
[1726668933101,1.13571559,128.62,128.57,14.94]
[1726668933303,3.84397354,128.61,128.58,3.8882]
[1726668933907,7.73167354,128.61,128.58,3.8882]
[1726668935405,17.25844296,128.63,128.57,14.94]
[1726668935608,1.13548606,128.62,128.57,14.94]
[1726668935903,17.25844296,128.63,128.57,14.94]
[1726668936707,1.13581412,128.62,128.55,14.94]
[1726668936905,5.08561365,128.62,128.55,14.94]
[1726668937104,3.94979953,128.62,128.58,3.8884]
[1726668937408,3.84397354,128.62,128.57,14.94]
[1726668937707,3.8877,128.61,128.58,3.8884]
[1726668937909,21.14614296,128.61,128.58,3.8884]
[1726668938101,3.84747513,128.62,128.58,3.8884]
[1726668938308,32.10512261,128.63,128.58,3.8884]
[1726668938509,15.97780943,128.62,128.58,3.8884]
[1726668938809,17.26336248,128.61,128.58,3.8884]
[1726668939011,3.8875,128.61,128.58,3.8884]
[1726668939208,32.10397944,128.62,128.54,14.94]
[1726668939405,15.97709867,128.61,128.54,14.94]
[1726668939610,3.8887,128.57,128.54,18.8294]
[1726668940014,3.8887,128.57,128.54,14.94]
[1726668940512,3.8885,128.58,128.55,3.8893]
[1726668941009,3.8883,128.59,128.56,14.94]
[1726668941512,3.888,128.6,128.56,14.94]
[1726668941708,35.99124638,128.6,128.56,14.94]
[1726668942008,337.0,128.62,128.53,14.94]
[1726668942009,17.26277744,128.59,128.53,14.94]
[1726668942209,17.26277744,128.59,128.58,18.8284]
[1726668942405,337.0,128.62,128.58,14.94]
[1726668942608,17.26475769,128.61,128.58,14.94]
[1726668942908,17.26475769,128.61,128.59,3.8879]
[1726668944010,17.26475769,128.61,128.57,3.8886]
[1726668944517,14.8421077,128.6,128.56,14.94]
[1726668944711,18.7301077,128.6,128.56,14.94]
[1726668945013,3.888,128.6,128.58,14.94]
[1726668945210,3.888,128.6,128.57,3.8885]
[1726668945612,35.99737583,128.6,128.57,3.8885]
[1726668945813,21.15351249,128.6,128.57,3.8885]
[1726668946008,3.888,128.6,128.57,3.8885]
[1726668946414,32.10926144,128.61,128.56,14.94]
[1726668946617,17.26560387,128.6,128.58,14.94]
[1726668947004,17.26560387,128.62,128.59,14.94]
[1726668947203,17.26560387,128.62,128.61,14.94]
[1726668947409,342.8174,128.69,128.61,14.94]
[1726668947617,3.886,128.66,128.63,14.94]
[1726668948011,3.8858,128.67,128.63,18.8267]
[1726668948211,3.8858,128.67,128.63,14.94]
[1726668948507,20.66531195,128.69,128.63,18.8268]
[1726668948712,14.84791195,128.68,128.63,18.8268]
[1726668949015,20.66531195,128.69,128.63,14.94]
[1726668949212,20.66531195,128.69,128.64,14.94]
[1726668949716,20.66531195,128.69,128.63,14.94]
[1726668950011,20.66531195,128.69,128.61,14.94]
[1726668950312,20.66531195,128.69,128.62,18.8272]
[1726668950816,3.8862,128.66,128.62,18.8272]
[1726668952118,3.8857,128.67,128.63,3.8867]
[1726668952320,20.66531195,128.69,128.62,14.94]
[1726668952524,35.60531195,128.69,128.61,3.8872]
[1726668952715,14.84791195,128.68,128.61,3.8872]
[1726668953116,3.8863,128.65,128.61,3.8872]
[1726668955120,3.886,128.66,128.62,3.8872]
[1726668956110,3.8863,128.65,128.62,3.8872]
[1726668956515,14.84791195,128.67,128.62,3.8872]
[1726668956716,3.8861,128.66,128.62,3.8872]
[1726668957221,14.84791195,128.67,128.59,2.9371]
[1726668957222,3.8864,128.65,128.59,2.9371]
[1726668957415,3.8864,128.65,128.61,14.94]
[1726668958725,3.8864,128.65,128.62,3.887]
[1726668959924,3.8861,128.66,128.62,3.887]
[1726668960725,18.71938349,128.66,128.62,3.887]
[1726668960920,3.8863,128.65,128.62,3.887]
[1726668961122,31.40799209,128.68,128.62,14.94]
[1726668961329,14.83854227,128.67,128.62,14.94]
[1726668961528,3.8859,128.67,128.62,14.94]
[1726668961730,31.41086613,128.68,128.62,14.94]
[1726668962024,3.886,128.66,128.63,3.8867]
[1726668962217,342.8174,128.69,128.63,3.8867]
[1726668962415,14.84792716,128.68,128.63,3.8867]
[1726668962623,3.8859,128.67,128.63,3.8867]
[1726668963521,14.84792716,128.68,128.64,14.94]
[1726668963720,339.9273,128.69,128.64,14.94]
[1726668964321,339.9273,128.69,128.65,14.94]
[1726668964632,337.0,128.69,128.65,14.94]
[1726668964925,337.0,128.69,128.66,3.8857]
[1726668965318,3.82227744,128.7,128.64,14.94]
[1726668965521,17.7666,128.71,128.62,14.94]
[1726668965919,3.8857,128.68,128.64,3.8863]
[1726668966131,3.96740821,128.68,128.64,3.8863]
[1726668966336,17.7666,128.71,128.64,3.8863]
[1726668966626,3.8858,128.67,128.64,3.8863]
[1726668967925,3.8861,128.66,128.63,3.8868]
[1726668968133,3.86239887,128.68,128.62,14.94]
[1726668968331,17.7666,128.71,128.62,14.94]
[1726668969025,14.94,128.68,128.59,2.9371]
[1726668969224,5.745,128.67,128.59,2.9371]
[1726668969417,3.8867,128.64,128.6,3.8875]
[1726668969622,5.745,128.67,128.6,14.94]
[1726668970227,3.8864,128.65,128.61,3.8873]
[1726668971225,3.8866,128.64,128.61,3.8873]
[1726668971433,14.94,128.66,128.59,14.94]
[1726668971630,17.7147,128.66,128.59,14.94]
[1726668972042,3.8868,128.64,128.6,3.8877]
[1726668972535,2.7747,128.66,128.59,14.94]
[1726668972726,3.887,128.63,128.59,18.8279]
[1726668973925,339.7747,128.66,128.58,3.8883]
[1726668973926,337.0,128.65,128.58,3.8883]
[1726668974233,14.94,128.62,128.55,14.94]
[1726668974537,21.97824209,128.61,128.54,3.8895]
[1726668974838,3.96014209,128.6,128.54,3.8895]
[1726668975135,3.8885,128.58,128.54,3.8895]
[1726668975933,3.8885,128.58,128.55,3.8892]
[1726668976127,3.8885,128.58,128.53,14.94]
[1726668976637,3.8885,128.58,128.54,3.8894]
[1726668977334,3.8888,128.57,128.54,3.8894]
[1726668977532,3.8888,128.57,128.53,3.8898]
[1726668979828,3.8888,128.57,128.54,3.8896]
[1726668980535,3.8888,128.57,128.54,18.8296]
[1726668980736,3.8884,128.58,128.55,3.8892]
[1726668980934,339.8238,128.6,128.55,3.8892]
[1726668981135,1.13641585,128.59,128.55,3.8892]
[1726668981531,1.13641585,128.59,128.54,14.94]
[1726668981532,1.13641585,128.59,128.54,18.8295]
[1726668981840,1.13641585,128.59,128.54,14.94]
[1726668982231,3.8891,128.56,128.53,3.8898]
[1726668982735,354.7638,128.6,128.51,3.8903]
[1726668982936,14.94,128.58,128.5,14.94]
[1726668983132,1.13687899,128.57,128.49,14.94]
[1726668983443,3.8898,128.54,128.51,3.8905]
[1726668983829,2.8494,128.56,128.52,3.8901]
[1726668984031,2.8494,128.56,128.52,14.94]
[1726668985234,3.8893,128.55,128.52,18.83]
[1726668986330,2.8494,128.56,128.5,18.8307]
[1726668986533,2.8494,128.56,128.5,3.8907]
[1726668986935,3.8897,128.54,128.51,3.8904]
[1726668987439,2.8494,128.56,128.5,14.94]
[1726668987643,3.8895,128.55,128.5,14.94]
[1726668988731,3.8895,128.55,128.52,3.89]
[1726668989130,6.7386,128.56,128.5,14.94]
[1726668989336,6.7386,128.56,128.53,3.8898]
[1726668991139,2.8494,128.56,128.52,14.94]
[1726668991339,3.8888,128.57,128.52,14.94]
[1726668991740,3.8891,128.56,128.53,3.8897]
[1726668992238,3.8891,128.56,128.48,8.6497]
[1726668992442,14.94,128.58,128.48,5.6775]
[1726668992639,3.0419,128.55,128.48,17.7458]
[1726668992940,6.9314,128.55,128.5,14.94]
[1726668993141,3.0419,128.55,128.5,14.94]
[1726668993340,3.0419,128.55,128.51,3.8903]
[1726668994040,3.8897,128.54,128.51,3.8903]
[1726668994944,337.0,128.58,128.52,14.94]
[1726668995144,1.13654615,128.57,128.52,14.94]
[1726668995545,340.0419,128.58,128.52,18.83]
[1726668995743,1.13661125,128.57,128.52,18.83]
[1726668995939,3.8893,128.55,128.52,18.83]
[1726668996134,340.0419,128.58,128.5,14.94]
[1726668996334,16.07661429,128.57,128.5,14.94]
[1726668996544,3.8898,128.54,128.51,3.8903]
[1726668996749,7.69654297,128.54,128.51,3.8903]
[1726668997556,3.8898,128.54,128.52,3.8902]
[1726668998254,3.8898,128.54,128.51,3.8904]
[1726668998553,7.697148,128.53,128.48,17.7458]
[1726668998762,3.8901,128.53,128.49,3.891]
[1726668999057,3.8903,128.52,128.49,3.891]
[1726668999449,3.96393933,128.53,128.48,18.8312]
[1726668999653,3.8907,128.51,128.47,14.94]
[1726668999854,7.82855566,128.51,128.47,14.94]
[1726669000050,7.82855566,128.51,128.48,3.8913]
[1726669000247,7.82855566,128.51,128.47,14.94]
[1726669000649,7.82855566,128.51,128.47,18.8315]
[1726669000853,3.8908,128.5,128.47,18.8315]
[1726669001054,3.8908,128.5,128.42,2.9849]
[1726669001055,3.93785566,128.51,128.42,2.9849]
[1726669001254,3.93785566,128.51,128.45,14.94]
[1726669002356,7.82845566,128.51,128.47,3.8917]
[1726669002766,3.93785566,128.51,128.47,14.94]
[1726669003062,6.9634,128.52,128.48,3.8912]
[1726669003263,10.86293212,128.52,128.48,3.8912]
[1726669003458,6.97253212,128.52,128.49,3.891]
[1726669004363,10.86293212,128.52,128.48,3.8913]
[1726669004860,10.86293212,128.52,128.48,18.8313]
[1726669005058,6.97253212,128.52,128.49,3.8911]
[1726669006055,10.86293212,128.52,128.49,3.8911]
[1726669006364,10.86293212,128.52,128.48,18.8313]
[1726669007257,10.86293212,128.52,128.49,3.891]
[1726669007458,10.86293212,128.52,128.48,14.94]
[1726669007459,3.073,128.52,128.48,14.94]
[1726669007757,3.073,128.52,128.49,3.8908]
[1726669008066,3.073,128.52,128.48,14.94]
[1726669008559,5.6793,128.55,128.5,14.94]
[1726669008762,5.6793,128.55,128.52,14.94]
[1726669008763,2.8192,128.55,128.52,14.94]
[1726669009260,6.7086,128.55,128.52,14.94]
[1726669009458,2.8192,128.55,128.52,14.94]
[1726669009759,2.8192,128.55,128.5,14.94]
[1726669009959,2.8192,128.55,128.52,3.89]
[1726669010165,2.8192,128.55,128.52,14.94]
[1726669010472,3.0475,128.58,128.52,14.94]
[1726669010760,3.889,128.56,128.52,14.94]
[1726669010957,6.0978,128.58,128.53,14.94]
[1726669011363,340.0692,128.6,128.53,14.94]
[1726669011364,3.8882,128.59,128.53,14.94]
[1726669011663,3.8882,128.59,128.55,14.94]
[1726669012064,3.8882,128.59,128.56,3.8889]
[1726669012255,340.888,128.6,128.55,14.94]
[1726669012465,2.9436,128.62,128.58,3.8882]
[1726669012653,3.94930917,128.61,128.55,14.94]
[1726669012853,17.8836,128.62,128.55,14.94]
[1726669013060,4.07955478,128.61,128.56,3.8888]
[1726669013352,3.8882,128.59,128.56,3.8888]
[1726669013866,6.85859084,128.61,128.55,14.94]
[1726669013867,3.8886,128.58,128.55,3.8892]
[1726669014164,3.8886,128.58,128.53,14.94]
[1726669014165,21.79859084,128.61,128.53,14.94]
[1726669014358,3.0691,128.6,128.53,14.94]
[1726669014560,3.8885,128.58,128.55,3.8892]
[1726669014861,3.0691,128.6,128.53,14.94]
[1726669015061,3.0691,128.6,128.48,8.5916]
[1726669015062,3.0691,128.6,128.51,14.94]
[1726669015261,3.8889,128.57,128.54,3.8894]
[1726669015469,3.0691,128.6,128.51,14.94]
[1726669015663,3.889,128.56,128.53,3.8898]
[1726669015864,3.0691,128.6,128.51,14.94]
[1726669016166,3.8895,128.55,128.52,3.89]
[1726669016373,14.94,128.57,128.5,14.94]
[1726669016559,2.7891,128.56,128.5,14.94]
[1726669016763,3.8898,128.54,128.51,3.8903]
[1726669016960,2.7891,128.56,128.5,14.94]
[1726669018062,14.94,128.52,128.36,7.7901]
[1726669018259,14.94,128.49,128.33,8.6886]
[1726669018463,2.9436,128.48,128.41,14.94]
[1726669018664,3.8925,128.45,128.41,14.94]